Workbook

Sheet Hoja1
H5: Hospital General de Especialidades Dr. Mario Tolentino Dipp
H8: Gerencia de Estadística
H10: Consolidado Trimestral Enero - Marzo 2024
H13: Servicios brindados | J13: Primer Trimestre 2024 | M13: Total trimestre
J14: Enero | K14: Febrero | L14: Marzo
H15: Consultas | I15: Alergologia | J15: 0 | K15: 0 | L15: 0 | M15: =J15+K15+L15 -> 0
I16: Anestesiologia y reanimacion | J16: 0 | K16: 0 | L16: 0 | M16: =J16+K16+L16 -> 0
I17: Cardiologia | J17: 471 | K17: 413 | L17: 389 | M17: 1,273
I18: Cirugia Pediatrica | J18: 0 | K18: 0 | L18: 0 | M18: 0
I19: Cirugia Plastica-Reparadora | J19: 0 | K19: 0 | L19: 0 | M19: 0
I20: Cirugía Maxilo-facial | J20: 0 | K20: 0 | L20: 0 | M20: =J20+K20+L20 -> 0
I21: Dermatologia | J21: 86 | K21: 73 | L21: 60 | M21: 219
I22: Endocrinologia | J22: 0 | K22: 0 | L22: 0 | M22: 0
I23: Fisioterapia | J23: 0 | K23: 0 | L23: 0 | M23: 0
I24: Gastroenterologia | J24: 248 | K24: 249 | L24: 242 | M24: 739
I25: Genética | J25: 0 | K25: 0 | L25: 0 | M25: 0
I26: Ginecología | J26: 221 | K26: 227 | L26: 211 | M26: 659
I27: Hematologia | J27: 73 | K27: 83 | L27: 129 | M27: 285
I28: Infectología | J28: 0 | K28: 0 | L28: 0 | M28: 0
I29: Nefrologia | J29: 134 | K29: 136 | L29: 141 | M29: 411
I30: Neonatología | J30: 0 | K30: 0 | L30: 0 | M30: 0
I31: Neurocirugia | J31: 0 | K31: 0 | L31: 0 | M31: 0
I32: Neurologia | J32: 226 | K32: 188 | L32: 210 | M32: 624
I33: Neumologia | J33: 307 | K33: 255 | L33: 287 | M33: 849
I34: Nutrición | J34: 0 | K34: 0 | L34: 0 | M34: 0
I35: Odontologia | J35: 28 | K35: 5 | L35: 28 | M35: =SUM(J35:L35) -> 61
I36: Oncologia | J36: 0 | K36: 0 | L36: 0 | M36: =J37+K37+L36 -> 0
I37: Ortopedia | J37: 0 | K37: 0 | L37: 0 | M37: 0
I38: Otorrinolaringologia | J38: 0 | K38: 0 | L38: 37 | M38: 37
I39: Pediatria | J39: 0 | K39: 0 | L39: 0 | M39: 0
I40: Psicologia | J40: 51 | K40: 56 | L40: 66 | M40: 173
I41: Urologia | J41: 149 | K41: 149 | L41: 132 | M41: 430
I42: Otras | J42: 1,471 | K42: 1,617 | L42: 2,654 | M42: 5,742
H43: Subtotal consultas | J43: =SUM(J15:J42) -> 3,465 | K43: =SUM(K16:K42) -> 3,451 | L43: =SUM(L15:L42) -> 4,586 | M43: =+J43+K43+L43 -> 11,502
H44: Emergencias | J44: 1,952 | K44: 2,177 | L44: 1,941 | M44: =+J44+K44+L44 -> 6,070
H45: Hospitalizaciones | J45: 93 | K45: 84 | L45: 107 | M45: =+J45+K45+L45 -> 284
H46: Total de servicios | J46: =SUM(J43:J45) -> 5,510 | K46: =SUM(K43:K45) -> 5,712 | L46: =SUM(L43:L45) -> 6,634 | M46: =+J46+K46+L46 -> 17,856
H48: Otros servicios | J48: Primer Trimestre 2024 | M48: Total trimestre
J49: Enero | K49: Febrero | L49: Marzo
H50: Pruebas de Laboratorio | J50: 6,456 | K50: 15,774 | L50: 22,789 | M50: =SUM(J50:L50) -> 45,019
H51: Estudios de Imágenes | J51: 2,227 | K51: 15,642 | L51: 22,512 | M51: 40,381
H52: Evaluaciones Cardiológicas | J52: 261 | K52: 132 | L52: 277 | M52: 670
H53: Procedimientos Quirúrgicos | J53: 0 | K53: 0 | L53: 0 | M53: 0
H54: Endoscopías | J54: 0 | K54: 0 | L54: 0 | M54: 0
H55: Subtotal otros servicios | J55: =SUM(J50:J54) -> 8,944 | K55: =SUM(K50:K54) -> 31,548 | L55: =SUM(L50:L54) -> 45,578 | M55: =SUM(J55:L55) -> 86,070
I59: Noelia Núñez | L59: Ginssellys Vasquez
I60: Técnico en Datos Estadísticos | L60: Representante de Planificación
